[Event "*** Qualifier 1: Titled Tuesday 3|2 Blitz"]
[Site "Chess.com"]
[Date "2017.04.04"]
[Round "6"]
[White "jposthuma"]
[Black "geeeeri"]
[Result "1/2-1/2"]
[WhiteElo "2237"]
[BlackElo "2299"]
[TimeControl "180+2"]
[EndTime "14:31:16 PDT"]
[Termination "Game drawn by 50-move rule"]

1. b3 {[%clk 0:03:02]} 1... e5 {[%clk 0:03:00.5]} 2. Bb2 {[%clk 0:03:03.4]} 2...
Nc6 {[%clk 0:03:02.4]} 3. e3 {[%clk 0:03:04.7]} 3... d5 {[%clk 0:03:03.3]} 4.
Bb5 {[%clk 0:03:05.7]} 4... Bd6 {[%clk 0:03:03.5]} 5. f4 {[%clk 0:03:06.3]} 5...
Qe7 {[%clk 0:02:42.6]} 6. Nf3 {[%clk 0:02:52.9]} 6... f6 {[%clk 0:02:29.7]} 7.
fxe5 {[%clk 0:02:46]} 7... fxe5 {[%clk 0:02:27.5]} 8. Bxc6+ {[%clk 0:02:40.3]}
8... bxc6 {[%clk 0:02:27.6]} 9. Nxe5 {[%clk 0:02:34.9]} 9... Qh4+ {[%clk
0:02:22.5]} 10. g3 {[%clk 0:02:34.3]} 10... Qe4 {[%clk 0:01:59.9]} 11. Qh5+
{[%clk 0:02:07.3]} 11... g6 {[%clk 0:01:56.5]} 12. Qf3 {[%clk 0:02:06.8]} 12...
Nh6 {[%clk 0:01:42.6]} 13. Qxe4 {[%clk 0:02:02]} 13... dxe4 {[%clk 0:01:44.5]}
14. Nd7 {[%clk 0:01:27.8]} 14... Bxd7 {[%clk 0:01:22.6]} 15. Bxh8 {[%clk
0:01:27.2]} 15... O-O-O {[%clk 0:01:24.5]} 16. Bb2 {[%clk 0:01:18.8]} 16... Bg4
{[%clk 0:01:14.8]} 17. O-O {[%clk 0:00:41.9]} 17... Nf5 {[%clk 0:01:15.1]} 18.
Na3 {[%clk 0:00:19.7]} 18... Bxa3 {[%clk 0:00:56.4]} 19. Bxa3 {[%clk 0:00:21.6]}
19... Rxd2 {[%clk 0:00:57.5]} 20. Rf2 {[%clk 0:00:23.1]} 20... Rd5 {[%clk
0:00:53.1]} 21. c4 {[%clk 0:00:23.4]} 21... Rd3 {[%clk 0:00:53.3]} 22. Bc5
{[%clk 0:00:23.9]} 22... Bf3 {[%clk 0:00:47.6]} 23. Re1 {[%clk 0:00:21.8]} 23...
g5 {[%clk 0:00:48.2]} 24. h3 {[%clk 0:00:19.8]} 24... h5 {[%clk 0:00:48.5]} 25.
g4 {[%clk 0:00:20.4]} 25... hxg4 {[%clk 0:00:38.5]} 26. hxg4 {[%clk 0:00:22.3]}
26... Nh6 {[%clk 0:00:40]} 27. Bxa7 {[%clk 0:00:23.2]} 27... Nxg4 {[%clk
0:00:40.3]} 28. Rb2 {[%clk 0:00:21.9]} 28... Kd7 {[%clk 0:00:37]} 29. a4 {[%clk
0:00:22.1]} 29... Ne5 {[%clk 0:00:30]} 30. Bd4 {[%clk 0:00:20.6]} 30... Nf7
{[%clk 0:00:22.2]} 31. a5 {[%clk 0:00:21.4]} 31... Kc8 {[%clk 0:00:22.3]} 32. a6
{[%clk 0:00:22.1]} 32... Kb8 {[%clk 0:00:21]} 33. a7+ {[%clk 0:00:22.6]} 33...
Ka8 {[%clk 0:00:22.2]} 34. Rh2 {[%clk 0:00:23.4]} 34... Rxd4 {[%clk 0:00:21.2]}
35. exd4 {[%clk 0:00:24.1]} 35... Kxa7 {[%clk 0:00:23.1]} 36. Rh7 {[%clk
0:00:22.8]} 36... Nd6 {[%clk 0:00:24]} 37. Rxc7+ {[%clk 0:00:23.5]} 37... Kb6
{[%clk 0:00:25.3]} 38. Rg7 {[%clk 0:00:21.1]} 38... Nf5 {[%clk 0:00:26.4]} 39.
Rxg5 {[%clk 0:00:21]} 39... Nxd4 {[%clk 0:00:27.7]} 40. Kf2 {[%clk 0:00:20.2]}
40... Ne6 {[%clk 0:00:24.9]} 41. Re5 {[%clk 0:00:19.7]} 41... Nc5 {[%clk
0:00:26.5]} 42. Rg5 {[%clk 0:00:07.5]} 42... Nd3+ {[%clk 0:00:27]} 43. Kf1
{[%clk 0:00:08.8]} 43... c5 {[%clk 0:00:14.4]} 44. Re3 {[%clk 0:00:08.9]} 44...
Ka5 {[%clk 0:00:13.1]} 45. Rxd3 {[%clk 0:00:09.2]} 45... exd3 {[%clk 0:00:15]}
46. Rxc5+ {[%clk 0:00:07.8]} 46... Kb4 {[%clk 0:00:16.9]} 47. Rc8 {[%clk
0:00:03.3]} 47... Kxb3 {[%clk 0:00:16.1]} 48. c5 {[%clk 0:00:03.4]} 48... d2
{[%clk 0:00:12.1]} 49. Rd8 {[%clk 0:00:04.2]} 49... Kc4 {[%clk 0:00:09.5]} 50.
Rxd2 {[%clk 0:00:04.4]} 50... Kxc5 {[%clk 0:00:10.9]} 51. Kf2 {[%clk 0:00:05.6]}
51... Bd5 {[%clk 0:00:12.8]} 52. Ke3 {[%clk 0:00:06.9]} 52... Bc4 {[%clk
0:00:14.7]} 53. Ke4 {[%clk 0:00:07.1]} 53... Bb5 {[%clk 0:00:16.6]} 54. Ke5
{[%clk 0:00:06.8]} 54... Ba4 {[%clk 0:00:16.6]} 55. Rd8 {[%clk 0:00:05.4]} 55...
Kb4 {[%clk 0:00:15.9]} 56. Rc8 {[%clk 0:00:05.7]} 56... Bb3 {[%clk 0:00:17.8]}
57. Kd4 {[%clk 0:00:06.6]} 57... Bd1 {[%clk 0:00:15.2]} 58. Rb8+ {[%clk
0:00:07.3]} 58... Ka3 {[%clk 0:00:16.5]} 59. Kc3 {[%clk 0:00:07.2]} 59... Bf3
{[%clk 0:00:16.3]} 60. Rf8 {[%clk 0:00:04.5]} 60... Bg2 {[%clk 0:00:16.5]} 61.
Rg8 {[%clk 0:00:04.3]} 61... Bf3 {[%clk 0:00:17]} 62. Rb8 {[%clk 0:00:04.9]}
62... Ka2 {[%clk 0:00:17.6]} 63. Rb6 {[%clk 0:00:03.6]} 63... Ka1 {[%clk
0:00:17.4]} 64. Kc2 {[%clk 0:00:03.6]} 64... Be4+ {[%clk 0:00:18]} 65. Kc1
{[%clk 0:00:05.1]} 65... Bd5 {[%clk 0:00:19.6]} 66. Ra6+ {[%clk 0:00:03.2]}
66... Ba2 {[%clk 0:00:20.3]} 67. Rg6 {[%clk 0:00:03.3]} 67... Bb3 {[%clk
0:00:21.7]} 68. Rg2 {[%clk 0:00:04.2]} 68... Ba2 {[%clk 0:00:23.6]} 69. Kc2
{[%clk 0:00:03.5]} 69... Bd5 {[%clk 0:00:24.3]} 70. Rg1+ {[%clk 0:00:04.7]}
70... Ka2 {[%clk 0:00:25.2]} 71. Kc3 {[%clk 0:00:06.3]} 71... Be6 {[%clk
0:00:24.8]} 72. Rf1 {[%clk 0:00:06.2]} 72... Bd5 {[%clk 0:00:25.2]} 73. Re1
{[%clk 0:00:07.2]} 73... Bf7 {[%clk 0:00:25.7]} 74. Kc2 {[%clk 0:00:08.7]} 74...
Bg6+ {[%clk 0:00:25.2]} 75. Kc1 {[%clk 0:00:10.2]} 75... Bf5 {[%clk 0:00:24.7]}
76. Re5 {[%clk 0:00:10.7]} 76... Bg6 {[%clk 0:00:25.2]} 77. Re7 {[%clk
0:00:10.2]} 77... Kb3 {[%clk 0:00:25.3]} 78. Kd2 {[%clk 0:00:10.2]} 78... Bf5
{[%clk 0:00:25.3]} 79. Rc7 {[%clk 0:00:10.9]} 79... Bg6 {[%clk 0:00:25.7]} 80.
Ke3 {[%clk 0:00:09.1]} 80... Bf5 {[%clk 0:00:25.2]} 81. Kd4 {[%clk 0:00:10.5]}
81... Bg6 {[%clk 0:00:23.9]} 82. Rc5 {[%clk 0:00:11.2]} 82... Bh7 {[%clk
0:00:23.9]} 83. Rb5+ {[%clk 0:00:12]} 83... Ka4 {[%clk 0:00:23.6]} 84. Rb7
{[%clk 0:00:11.5]} 84... Bg8 {[%clk 0:00:23.5]} 85. Kc3 {[%clk 0:00:12.3]} 85...
Bd5 {[%clk 0:00:22.3]} 86. Kd4 {[%clk 0:00:10.1]} 86... Bg8 {[%clk 0:00:22.1]}
87. Kc5 {[%clk 0:00:10.4]} 87... Be6 {[%clk 0:00:21.7]} 88. Re7 {[%clk
0:00:09.1]} 88... Bg8 {[%clk 0:00:22.1]} 89. Re3 {[%clk 0:00:08.6]} 89... Bf7
{[%clk 0:00:22.5]} 90. Re4+ {[%clk 0:00:06.7]} 90... Kb3 {[%clk 0:00:21.6]} 91.
Rf4 {[%clk 0:00:07.7]} 91... Bg8 {[%clk 0:00:22.7]} 92. Rf3+ {[%clk 0:00:08.6]}
92... Ka4 {[%clk 0:00:23.2]} 93. Rf6 {[%clk 0:00:07.5]} 93... Kb3 {[%clk
0:00:20.9]} 94. Kd4 {[%clk 0:00:05.6]} 94... Ka4 {[%clk 0:00:21.2]} 95. Rb6
{[%clk 0:00:05.1]} 95... Bf7 {[%clk 0:00:21.6]} 96. Rb7 {[%clk 0:00:06.1]} 96...
Bg8 {[%clk 0:00:22.5]} 97. Kc3 {[%clk 0:00:07.3]} 97... Be6 {[%clk 0:00:22.2]}
98. Rb6 {[%clk 0:00:06.3]} 98... Bg8 {[%clk 0:00:22.7]} 99. Rb4+ {[%clk
0:00:07.6]} 99... Ka5 {[%clk 0:00:23.2]} 100. Rb8 {[%clk 0:00:05.6]} 100... Be6
{[%clk 0:00:23.8]} 101. Kd4 {[%clk 0:00:06.7]} 101... Bf7 {[%clk 0:00:24.7]}
102. Kc5 {[%clk 0:00:07.7]} 102... Ka4 {[%clk 0:00:25.6]} 103. Rb1 {[%clk
0:00:04]} 103... Bg8 {[%clk 0:00:24.3]} 104. Rg1 {[%clk 0:00:03]} 104... Bf7
{[%clk 0:00:25.2]} 105. Rf1 {[%clk 0:00:03.9]} 105... Bg8 {[%clk 0:00:26.2]}
106. Rf3 {[%clk 0:00:03.8]} 106... Be6 {[%clk 0:00:25.6]} 107. Re3 {[%clk
0:00:03.3]} 107... Bg8 {[%clk 0:00:26.3]} 108. Re7 {[%clk 0:00:02.7]} 108... Kb3
{[%clk 0:00:25.1]} 109. Rg7 {[%clk 0:00:04.6]} 109... Be6 {[%clk 0:00:25.4]}
110. Kb5 {[%clk 0:00:05.5]} 110... Kc3 {[%clk 0:00:25.6]} 111. Rg3+ {[%clk
0:00:06.8]} 111... Kb2 {[%clk 0:00:22]} 112. Kb4 {[%clk 0:00:07.4]} 112... Bd5
{[%clk 0:00:21.2]} 113. Rh3 {[%clk 0:00:07.5]} 113... Ka1 {[%clk 0:00:19.3]}
114. Kc3 {[%clk 0:00:07.1]} 114... Be4 {[%clk 0:00:17.8]} 115. Rh2 {[%clk
0:00:06.5]} 115... Bb1 {[%clk 0:00:16.5]} 116. Rh8 {[%clk 0:00:06.5]} 116... Ba2
{[%clk 0:00:17.1]} 117. Kc2 {[%clk 0:00:06.1]} 117... Bb1+ {[%clk 0:00:17.5]}
118. Kc1 {[%clk 0:00:07.1]} 118... Ba2 {[%clk 0:00:19.4]} 119. Rb8 {[%clk
0:00:07.3]} 119... Be6 {[%clk 0:00:18.5]} 120. Rb1+ {[%clk 0:00:08.9]} 120...
Ka2 {[%clk 0:00:18.5]} 121. Rb6 {[%clk 0:00:10.8]} 121... Bc4 {[%clk 0:00:17.8]}
122. Rb4 {[%clk 0:00:10.4]} 122... Bb3 {[%clk 0:00:16.7]} 123. Rb7 {[%clk
0:00:10.3]} 123... Bd5 {[%clk 0:00:16.7]} 124. Rb5 {[%clk 0:00:09.6]} 124... Bc4
{[%clk 0:00:16.7]} 125. Rb4 {[%clk 0:00:09.9]} 125... Bd5 {[%clk 0:00:17.2]}
1/2-1/2

[Event "*** Qualifier 1: Titled Tuesday 3|2 Blitz"]
[Site "Chess.com"]
[Date "2017.04.04"]
[Round "7"]
[White "iaraldinho"]
[Black "indfraeng"]
[Result "1-0"]
[WhiteElo "2381"]
[BlackElo "1765"]
[TimeControl "180+2"]
[EndTime "14:34:27 PDT"]
[Termination "iaraldinho won by checkmate"]

1. e4 {[%clk 0:03:01.9]} 1... c6 {[%clk 0:03:01]} 2. d4 {[%clk 0:03:02]} 2... d5
{[%clk 0:03:02.6]} 3. Nc3 {[%clk 0:03:03.4]} 3... dxe4 {[%clk 0:03:03.1]} 4.
Nxe4 {[%clk 0:03:04.4]} 4... Nd7 {[%clk 0:03:04.8]} 5. Bd3 {[%clk 0:03:00.6]}
5... Ngf6 {[%clk 0:03:05.2]} 6. Ng5 {[%clk 0:03:02]} 6... e6 {[%clk 0:03:06]} 7.
N1f3 {[%clk 0:03:02.1]} 7... Bd6 {[%clk 0:03:06.3]} 8. Qe2 {[%clk 0:03:03.2]}
8... h6 {[%clk 0:03:07.6]} 9. Ne4 {[%clk 0:03:04.2]} 9... Nxe4 {[%clk
0:03:08.9]} 10. Bxe4 {[%clk 0:03:06.1]} 10... Nf6 {[%clk 0:03:07.6]} 11. Bd3
{[%clk 0:03:06.8]} 11... O-O {[%clk 0:03:08.2]} 12. Bd2 {[%clk 0:03:07.6]} 12...
Qc7 {[%clk 0:03:08.7]} 13. O-O-O {[%clk 0:03:02.2]} 13... b6 {[%clk 0:03:08.4]}
14. g4 {[%clk 0:03:03]} 14... c5 {[%clk 0:03:03.2]} 15. g5 {[%clk 0:03:03.3]}
15... h5 {[%clk 0:03:03.8]} 16. gxf6 {[%clk 0:03:03.5]} 16... g6 {[%clk
0:03:03.2]} 17. Rhg1 {[%clk 0:02:49]} 17... Bb7 {[%clk 0:03:02.6]} 18. Ng5
{[%clk 0:02:45.1]} 18... Bf4 {[%clk 0:02:59]} 19. Nxe6 {[%clk 0:02:37.4]} 19...
fxe6 {[%clk 0:02:57.4]} 20. Rxg6+ {[%clk 0:02:33.3]} 20... Kh8 {[%clk 0:02:55]}
21. Qxh5+ {[%clk 0:02:32.1]} 21... Qh7 {[%clk 0:02:52.8]} 22. Qxh7+ {[%clk
0:02:25.3]} 22... Kxh7 {[%clk 0:02:52.8]} 23. Bxf4 {[%clk 0:02:27.2]} 23... c4
{[%clk 0:02:51.4]} 24. Rg7+ {[%clk 0:02:25.3]} 24... Kh8 {[%clk 0:02:51.2]} 25.
Rh7+ {[%clk 0:02:27.2]} 25... Kg8 {[%clk 0:02:51.3]} 26. Rg1+ {[%clk 0:02:29.1]}
26... Bg2 {[%clk 0:02:48.9]} 27. Rxg2# {[%clk 0:02:30.5]} 1-0

[Event "*** Qualifier 1: Titled Tuesday 3|2 Blitz"]
[Site "Chess.com"]
[Date "2017.04.04"]
[Round "7"]
[White "HansCoolNiemann"]
[Black "ecwinslow"]
[Result "1-0"]
[WhiteElo "2349"]
[BlackElo "2092"]
[TimeControl "180+2"]
[EndTime "14:35:50 PDT"]
[Termination "HansCoolNiemann won by resignation"]

1. d4 {[%clk 0:02:55.4]} 1... Nf6 {[%clk 0:02:59.4]} 2. c4 {[%clk 0:02:55]} 2...
g6 {[%clk 0:03:00.3]} 3. Nc3 {[%clk 0:02:46.2]} 3... Bg7 {[%clk 0:02:59.6]} 4.
e4 {[%clk 0:02:47]} 4... d6 {[%clk 0:02:59.5]} 5. Nf3 {[%clk 0:02:43.1]} 5...
O-O {[%clk 0:03:00.1]} 6. Be2 {[%clk 0:02:41.4]} 6... e5 {[%clk 0:03:01.5]} 7.
dxe5 {[%clk 0:02:42]} 7... dxe5 {[%clk 0:03:01.5]} 8. Qxd8 {[%clk 0:02:41.9]}
8... Rxd8 {[%clk 0:03:03.4]} 9. Bg5 {[%clk 0:02:42.7]} 9... c6 {[%clk
0:02:50.9]} 10. Nxe5 {[%clk 0:02:35.9]} 10... Na6 {[%clk 0:02:43.3]} 11. Nxc6
{[%clk 0:02:29.1]} 11... bxc6 {[%clk 0:02:40.1]} 12. e5 {[%clk 0:02:29.9]} 12...
h6 {[%clk 0:01:23.4]} 13. Bxf6 {[%clk 0:02:26.1]} 13... Bxf6 {[%clk 0:01:23.6]}
14. exf6 {[%clk 0:02:28]} 14... Rd6 {[%clk 0:01:19.2]} 15. Rd1 {[%clk
0:02:25.3]} 15... Rxf6 {[%clk 0:01:18.5]} 16. O-O {[%clk 0:02:22.2]} 16... Bf5
{[%clk 0:01:10.8]} 17. g4 {[%clk 0:02:19.3]} 17... Be6 {[%clk 0:01:10]} 18. f4
{[%clk 0:02:13.1]} 18... Re8 {[%clk 0:01:02.6]} 19. Ne4 {[%clk 0:02:09]} 1-0

[Event "*** Qualifier 1: Titled Tuesday 3|2 Blitz"]
[Site "Chess.com"]
[Date "2017.04.04"]
[Round "7"]
[White "Sethu0025"]
[Black "Vamostodorecto"]
[Result "1-0"]
[WhiteElo "2587"]
[BlackElo "2344"]
[TimeControl "180+2"]
[EndTime "14:36:40 PDT"]
[Termination "Sethu0025 won by resignation"]

1. e4 {[%clk 0:03:02]} 1... e5 {[%clk 0:03:00.6]} 2. Nf3 {[%clk 0:03:02.2]} 2...
Nc6 {[%clk 0:03:00.8]} 3. Bb5 {[%clk 0:03:03.8]} 3... a6 {[%clk 0:03:00.6]} 4.
Ba4 {[%clk 0:03:05.3]} 4... Nf6 {[%clk 0:03:00.4]} 5. O-O {[%clk 0:03:06.7]}
5... b5 {[%clk 0:03:00.4]} 6. Bb3 {[%clk 0:03:06.6]} 6... Bb7 {[%clk 0:03:02]}
7. d3 {[%clk 0:03:07.5]} 7... Bc5 {[%clk 0:03:01.8]} 8. Nc3 {[%clk 0:03:07.9]}
8... O-O {[%clk 0:02:52.8]} 9. a4 {[%clk 0:03:08.9]} 9... b4 {[%clk 0:02:51.5]}
10. Nd5 {[%clk 0:03:09.6]} 10... h6 {[%clk 0:02:37.8]} 11. c3 {[%clk 0:03:06.8]}
11... bxc3 {[%clk 0:02:37.6]} 12. bxc3 {[%clk 0:03:07.5]} 12... d6 {[%clk
0:02:37.3]} 13. d4 {[%clk 0:03:07.8]} 13... exd4 {[%clk 0:02:24.7]} 14. cxd4
{[%clk 0:03:08.3]} 14... Ba7 {[%clk 0:02:25]} 15. Nxf6+ {[%clk 0:03:08.2]} 15...
Qxf6 {[%clk 0:02:26.9]} 16. Bb2 {[%clk 0:03:09.5]} 16... Qg6 {[%clk 0:02:16.1]}
17. Bd5 {[%clk 0:03:09.5]} 17... Rab8 {[%clk 0:02:01.1]} 18. Rc1 {[%clk
0:03:03.5]} 18... Nb4 {[%clk 0:01:56.4]} 19. Nh4 {[%clk 0:02:57.6]} 19... Qf6
{[%clk 0:01:50.6]} 20. Bxb7 {[%clk 0:02:58.5]} 20... Rxb7 {[%clk 0:01:49.4]} 21.
Nf5 {[%clk 0:02:59.6]} 21... Nd3 {[%clk 0:01:33.2]} 22. Qxd3 {[%clk 0:02:57.3]}
22... Rxb2 {[%clk 0:01:34.1]} 23. Rxc7 {[%clk 0:02:58.2]} 23... Bb6 {[%clk
0:01:28.9]} 24. Rc6 {[%clk 0:02:58.4]} 24... Rd8 {[%clk 0:01:15]} 25. Qc3 {[%clk
0:02:58.3]} 25... Re2 {[%clk 0:01:11]} 26. Rxb6 {[%clk 0:02:54.9]} 26... Rxe4
{[%clk 0:01:10.2]} 27. Ne3 {[%clk 0:02:50.3]} 27... Rxd4 {[%clk 0:01:09]} 28.
Rxa6 {[%clk 0:02:50.8]} 28... Qe5 {[%clk 0:01:05.9]} 29. a5 {[%clk 0:02:50.4]}
29... Kh8 {[%clk 0:01:00.2]} 30. Ra7 {[%clk 0:02:50.4]} 30... f5 {[%clk
0:00:57.4]} 31. Nxf5 {[%clk 0:02:46.2]} 1-0

[Event "*** Qualifier 1: Titled Tuesday 3|2 Blitz"]
[Site "Chess.com"]
[Date "2017.04.04"]
[Round "7"]
[White "Alex_Molchanov"]
[Black "Rodalquilar"]
[Result "1-0"]
[WhiteElo "2388"]
[BlackElo "2556"]
[TimeControl "180+2"]
[EndTime "14:37:32 PDT"]
[Termination "Alex_Molchanov won on time"]

1. d4 {[%clk 0:03:02]} 1... Nf6 {[%clk 0:02:48.5]} 2. c4 {[%clk 0:03:03.3]} 2...
e6 {[%clk 0:02:48.2]} 3. Nc3 {[%clk 0:03:04.5]} 3... Bb4 {[%clk 0:02:48.7]} 4.
e3 {[%clk 0:03:06]} 4... O-O {[%clk 0:02:49.2]} 5. Ne2 {[%clk 0:03:07.3]} 5...
Re8 {[%clk 0:02:50]} 6. a3 {[%clk 0:03:08.7]} 6... Bf8 {[%clk 0:02:51.2]} 7. e4
{[%clk 0:03:00.8]} 7... d5 {[%clk 0:02:41.8]} 8. e5 {[%clk 0:03:00.7]} 8... Nfd7
{[%clk 0:02:41.3]} 9. cxd5 {[%clk 0:03:00.5]} 9... exd5 {[%clk 0:02:42.4]} 10.
Nxd5 {[%clk 0:03:00.7]} 10... c5 {[%clk 0:02:43.7]} 11. f4 {[%clk 0:02:57.1]}
11... cxd4 {[%clk 0:02:40]} 12. Qxd4 {[%clk 0:02:55.8]} 12... Nc6 {[%clk
0:02:40.7]} 13. Qd1 {[%clk 0:02:47.4]} 13... Nc5 {[%clk 0:01:49.2]} 14. Nec3
{[%clk 0:02:39]} 14... Nxe5 {[%clk 0:01:01.3]} 15. fxe5 {[%clk 0:02:34.6]} 15...
Rxe5+ {[%clk 0:01:03.2]} 16. Ne3 {[%clk 0:02:35.3]} 16... Qb6 {[%clk 0:00:50.6]}
17. Nd5 {[%clk 0:02:26]} 17... Qh6 {[%clk 0:00:31.2]} 18. Be2 {[%clk 0:02:21.1]}
18... Qh4+ {[%clk 0:00:18]} 19. g3 {[%clk 0:02:18.5]} 19... Qh3 {[%clk
0:00:18.9]} 20. Nf4 {[%clk 0:02:13.8]} 20... Qh6 {[%clk 0:00:17]} 21. O-O {[%clk
0:02:12.1]} 21... Ne4 {[%clk 0:00:18.5]} 22. Nc4 {[%clk 0:02:02.3]} 22... Bc5+
{[%clk 0:00:19.1]} 23. Kg2 {[%clk 0:02:00.2]} 23... Re7 {[%clk 0:00:17.1]} 24.
Qd8+ {[%clk 0:01:59.1]} 1-0

[Event "*** Qualifier 1: Titled Tuesday 3|2 Blitz"]
[Site "Chess.com"]
[Date "2017.04.04"]
[Round "7"]
[White "NTBT_DHS"]
[Black "DavidMarkosyan"]
[Result "1-0"]
[WhiteElo "2450"]
[BlackElo "2340"]
[TimeControl "180+2"]
[EndTime "14:37:48 PDT"]
[Termination "NTBT_DHS won by resignation"]

1. d4 {[%clk 0:03:00.8]} 1... Nf6 {[%clk 0:03:00.2]} 2. c4 {[%clk 0:03:02.4]}
2... g6 {[%clk 0:03:01.6]} 3. Nc3 {[%clk 0:03:03.9]} 3... Bg7 {[%clk 0:03:03.3]}
4. e4 {[%clk 0:03:05.4]} 4... d6 {[%clk 0:03:05]} 5. Nf3 {[%clk 0:03:06.8]} 5...
O-O {[%clk 0:03:06.7]} 6. h3 {[%clk 0:03:06]} 6... e5 {[%clk 0:03:06.8]} 7. d5
{[%clk 0:03:07.4]} 7... a5 {[%clk 0:03:06.7]} 8. g4 {[%clk 0:03:08.7]} 8... Na6
{[%clk 0:03:07.4]} 9. Be3 {[%clk 0:03:08.7]} 9... Nd7 {[%clk 0:03:07.9]} 10. a3
{[%clk 0:03:07.4]} 10... Nb6 {[%clk 0:03:04]} 11. Rg1 {[%clk 0:02:48.6]} 11...
Kh8 {[%clk 0:03:03.3]} 12. Be2 {[%clk 0:02:17.2]} 12... Nc5 {[%clk 0:02:54.5]}
13. Nd2 {[%clk 0:02:13.1]} 13... a4 {[%clk 0:02:53]} 14. Kf1 {[%clk 0:02:13.4]}
14... f5 {[%clk 0:02:52.1]} 15. gxf5 {[%clk 0:02:09.4]} 15... gxf5 {[%clk
0:02:52.8]} 16. Bxc5 {[%clk 0:02:06.6]} 16... dxc5 {[%clk 0:02:53.2]} 17. Ke1
{[%clk 0:01:30]} 17... Qh4 {[%clk 0:02:44]} 18. Nf3 {[%clk 0:01:23.8]} 18...
Qxh3 {[%clk 0:02:40.9]} 19. Ng5 {[%clk 0:01:23.8]} 19... Qh2 {[%clk 0:02:37.8]}
20. Kd2 {[%clk 0:01:19.5]} 20... Bh6 {[%clk 0:02:35.4]} 21. Kc2 {[%clk
0:01:20.1]} 21... Qxf2 {[%clk 0:02:33.4]} 22. Qd3 {[%clk 0:01:14.1]} 22... fxe4
{[%clk 0:02:19.6]} 23. Ncxe4 {[%clk 0:01:08]} 23... Qd4 {[%clk 0:02:18.3]} 24.
Nxh7 {[%clk 0:00:55.5]} 24... Qxe4 {[%clk 0:02:02.5]} 25. Nxf8 {[%clk
0:00:53.3]} 25... Qxd3+ {[%clk 0:02:00.8]} 26. Bxd3 {[%clk 0:00:53.1]} 26...
Bxf8 {[%clk 0:02:02.2]} 27. Rh1+ {[%clk 0:00:46.8]} 27... Kg8 {[%clk 0:02:02.1]}
28. Rag1+ {[%clk 0:00:48.3]} 28... Kf7 {[%clk 0:02:03.1]} 29. Rf1+ {[%clk
0:00:46.7]} 29... Ke8 {[%clk 0:01:58.9]} 30. Bg6+ {[%clk 0:00:44]} 30... Ke7
{[%clk 0:01:55.3]} 31. Rh7+ {[%clk 0:00:42.1]} 1-0

[Event "*** Qualifier 1: Titled Tuesday 3|2 Blitz"]
[Site "Chess.com"]
[Date "2017.04.04"]
[Round "7"]
[White "jncool68"]
[Black "daro94"]
[Result "0-1"]
[WhiteElo "2535"]
[BlackElo "2708"]
[TimeControl "180+2"]
[EndTime "14:38:33 PDT"]
[Termination "daro94 won by resignation"]

1. e4 {[%clk 0:03:02]} 1... e5 {[%clk 0:03:00.3]} 2. Nf3 {[%clk 0:03:02.9]} 2...
Nc6 {[%clk 0:03:01.6]} 3. Bb5 {[%clk 0:03:03.9]} 3... Nf6 {[%clk 0:03:01.6]} 4.
O-O {[%clk 0:03:03.1]} 4... Nxe4 {[%clk 0:03:02.8]} 5. d4 {[%clk 0:03:04.2]}
5... Nd6 {[%clk 0:03:03.6]} 6. dxe5 {[%clk 0:03:05.4]} 6... Nxb5 {[%clk
0:03:04.5]} 7. a4 {[%clk 0:03:06.5]} 7... Nbd4 {[%clk 0:03:01.6]} 8. Nxd4 {[%clk
0:03:07.4]} 8... d5 {[%clk 0:03:02]} 9. exd6 {[%clk 0:03:07.9]} 9... Bxd6 {[%clk
0:03:01.8]} 10. Nb5 {[%clk 0:03:01.4]} 10... Be5 {[%clk 0:02:46.4]} 11. Qxd8+
{[%clk 0:02:53.6]} 11... Kxd8 {[%clk 0:02:48.3]} 12. Rd1+ {[%clk 0:02:39]} 12...
Bd7 {[%clk 0:02:49.4]} 13. Ra3 {[%clk 0:02:36.1]} 13... Kc8 {[%clk 0:02:46.4]}
14. Re3 {[%clk 0:01:43.6]} 14... Bf6 {[%clk 0:02:39.3]} 15. b3 {[%clk
0:01:32.5]} 15... a6 {[%clk 0:02:37]} 16. N5c3 {[%clk 0:01:33]} 16... Nb4 {[%clk
0:02:04.8]} 17. Re2 {[%clk 0:01:27.2]} 17... Bf5 {[%clk 0:02:01.9]} 18. Ne4
{[%clk 0:01:27.6]} 18... Bxe4 {[%clk 0:01:57.7]} 19. Rxe4 {[%clk 0:01:28.1]}
19... Nxc2 {[%clk 0:01:59.2]} 20. Rc4 {[%clk 0:01:23]} 20... Na1 {[%clk
0:01:55.3]} 21. Nd2 {[%clk 0:01:16.8]} 21... Rd8 {[%clk 0:01:50.9]} 22. Re1
{[%clk 0:01:17.2]} 22... b5 {[%clk 0:01:50.9]} 23. Rc6 {[%clk 0:01:14]} 23...
Kb7 {[%clk 0:01:48.1]} 24. Rc5 {[%clk 0:01:09.8]} 24... Rxd2 {[%clk 0:01:40.8]}
25. Bxd2 {[%clk 0:01:05.1]} 25... Nxb3 {[%clk 0:01:42.1]} 26. Rd5 {[%clk
0:01:02.7]} 26... Nxd2 {[%clk 0:01:43.4]} 27. axb5 {[%clk 0:01:04]} 27... axb5
{[%clk 0:01:42.2]} 28. Rxb5+ {[%clk 0:01:03.1]} 28... Kc6 {[%clk 0:01:40.8]} 29.
Rb4 {[%clk 0:00:57.9]} 29... Ra1 {[%clk 0:01:25.5]} 30. Rxa1 {[%clk 0:00:57.9]}
30... Bxa1 {[%clk 0:01:27.4]} 31. f3 {[%clk 0:00:49.3]} 31... Kd5 {[%clk
0:01:22.6]} 32. Kf2 {[%clk 0:00:49.2]} 32... Nc4 {[%clk 0:01:20.7]} 33. Ke2
{[%clk 0:00:49.7]} 33... Be5 {[%clk 0:01:16.9]} 34. Kd3 {[%clk 0:00:49]} 34...
Nd6 {[%clk 0:01:15.9]} 35. Rh4 {[%clk 0:00:49.2]} 35... h6 {[%clk 0:01:16.2]}
36. Rg4 {[%clk 0:00:50.2]} 36... c5 {[%clk 0:01:16.1]} 0-1